Workbook

Sheet Rekapitulace
A1: město Otrokovice | B1: REKAPITULACE NÁVRHU NA ROK 2019
A2: IČO:00284301 | B2: v Kč
C3: Schvál.rozp. | D3: Skutečnost | E3: Návrh rozp.
A4: POL | B4: TEXT | C4: za rok 2018 | D4: za rok 2018 | E4: na rok 2019
B5: I. PŘÍJMY
B6: 1. Daňové příjmy | C6: 288240000 | D6: 298328317.1 | E6: 317041000
B7: 2. Nedaňové příjmy | C7: 29833040 | D7: 46534086.33 | E7: 43755560
B8: 3. Kapitálové příjmy | C8: 168393000 | D8: 4277893 | E8: 13095670
B9: 4. Přijaté dotace | C9: 32778800 | D9: 79468984.05 | E9: 189454310
B10: PŘÍJMY CELKEM | C10: 519244840 | D10: 428609280.5 | E10: 563346540
B12: II. VÝDAJE
B13: 1. Běžné výdaje | C13: 315810580 | D13: 333438387.1 | E13: 343350340
B14: 2. Kapitálové výdaje | C14: 241911000 | D14: 115079681.6 | E14: 219996200
B15: VÝDAJE CELKEM | C15: 557721580 | D15: 448518068.7 | E15: 563346540
B17: III. FINANCOVÁNÍ
A18: 8115 | B18: Změny stavu KBÚ bez OSFA | C18: 9000000 | D18: 2591658.42 | E18: 6624000
A19: 8123 | B19: Dlouhodobé přijaté půjčené prostředky | C19: 50000000 | D19: 40000000 | E19: 24000000
A20: 8124 | B20: Uhrazené splátky dlouhod.půj. | C20: -20523260 | D20: -22614676 | E20: -30624000
A21: 8901 | B21: Operace,které nejsou Příj/Výd | C21: 0 | D21: -68194.25 | E21: 0
B22: FINANCOVÁNÍ CELKEM | C22: 38476740 | D22: 19908788.17 | E22: 0
B23: SALDO PŘÍJMŮ A VÝDAJŮ | C23: -38476740 | D23: -19908788.17 | E23: 0
A24: >>>> Konec sestavy <<<<
A26: Návrh pro rok 2019 č.1 Čerpání k období 12/2018
A27: Zpracoval :Štětkářová Kateřina DiS. ..................... Razítko

Sheet Příjmy
A1: město Otrokovice | C1: NÁVRH ROZPOČTU ZA ROK 2019
A2: IČO:00284301 | C2: PŘÍJMY A FINANCOVÁNÍ v tisících Kč
D3: Schvál. rozp. | E3: Předběžná skut. | F3: Návrh rozp. | G3: Rozdíl
A4: POL | B4: UZ | C4: TEXT | D4: za rok 2018 | E4: za rok 2018 | F4: na rok 2019 | G4: k SR minR
A6: Třída 1 | C6: Daňové příjmy
A7: 1111 | C7: Daň z příjmů fyzických osob placená plátci | D7: 61850 | E7: 64725.17 | F7: 74570 | G7: 12720
A8: 1112 | C8: Daň z příjmů fyzických osob placená poplatníky | D8: 1500 | E8: 1328.28 | F8: 1500 | G8: 0
A9: 1113 | C9: Daň z příjmů fyzických osob vybíraná srážkou | D9: 4550 | E9: 5247.71 | F9: 5500 | G9: 950
A10: 1121 | C10: Daň z příjmů právnických osob | D10: 49700 | E10: 48184 | F10: 53360 | G10: 3660
A11: 1122 | C11: Daň z příjmů právnických osob za obce | D11: 0 | E11: 3711.65 | F11: 1 | G11: 1
A12: 1211 | C12: Daň z přidané hodnoty | D12: 115500 | E12: 118592.09 | F12: 125000 | G12: 9500
A13: 1333 | C13: Poplatky za uložení odpadů | D13: 16650 | E13: 17026.22 | F13: 17100 | G13: 450
A14: 1334 | C14: Odvody za odnětí půdy ze ZPF | D14: 25 | E14: 3.41 | F14: 10 | G14: -15
A15: 1337 | C15: Poplatek za komunální odpad | D15: 8100 | E15: 8339.2 | F15: 8500 | G15: 400
A16: 1341 | C16: Poplatek ze psů | D16: 500 | E16: 516.15 | F16: 600 | G16: 100
A17: 1343 | C17: Poplatek za užívání veřejného prostranství | D17: 505 | E17: 662.02 | F17: 700 | G17: 195
A18: 1353 | C18: Příjmy za řidičské oprávnění | D18: 360 | E18: 388.42 | F18: 400 | G18: 40
A19: 1359 | C19: Ostatní odvody z vybraných činností | D19: 0 | E19: -26 | F19: 0 | G19: 0
A20: 1361 | C20: Správní poplatky | D20: 6700 | E20: 6604.6 | F20: 6700 | G20: 0
A21: 1381 | C21: Daň z hazardních her | D21: 600 | E21: 1381.82 | F21: 1300 | G21: 700
A22: 1382 | C22: Zrušený odvod z loterií | D22: 300 | E22: 0.89 | F22: 0 | G22: -300
A23: 1511 | C23: Daň z nemovitých věcí | D23: 21400 | E23: 21642.7 | F23: 21800 | G23: 400
C24: Daňové příjmy celkem | D24: 288240 | E24: 298328.33 | F24: 317041 | G24: 28801
A26: Třída 2 | C26: Nedaňové příjmy
A27: 2111 | C27: Příjmy z poskytování služeb a výrobků | D27: 5374 | E27: 3587.23 | F27: 4384 | G27: -990
A28: 2112 | C28: Příjmy z prodeje zboží | D28: 27 | E28: 22.99 | F28: 27 | G28: 0
A29: 2119 | C29: Ostatní příjmy z vlastní činnosti | D29: 250 | E29: 500.27 | F29: 600 | G29: 350
A30: 2122 | C30: Odvody příspěvkových organizací | D30: 3752 | E30: 7331.74 | F30: 6348 | G30: 2596
A31: 2131 | C31: Příjmy z pronájmu pozemků | D31: 506 | E31: 668.1 | F31: 650 | G31: 144
A32: 2132 | C32: Příjmy z pronájmu ost.nemovit. | D32: 17019 | E32: 17904.1 | F32: 17900 | G32: 881
A33: 2133 | C33: Příjmy z pronájmu movitých věcí | D33: 765 | E33: 764.72 | F33: 765 | G33: 0
A34: 2139 | C34: Ostatní příjmy z pronájmu majetku | D34: 0 | E34: 352.55 | F34: 350 | G34: 350
A35: 2141 | C35: Příjmy z úroků (část) | D35: 2 | E35: 2.34 | F35: 2 | G35: 0
A36: 2142 | C36: Příjmy z podílů na zisku a dividend | D36: 2 | E36: 5004.07 | F36: 5000 | G36: 4998
A37: 2143 | C37: Kursové rozdíly v příjmech | D37: 0 | E37: 0.05 | F37: 0 | G37: 0
A38: 2212 | C38: Sankční platby přijaté od jiných subjektů | D38: 420 | E38: 4322.02 | F38: 4162 | G38: 3742
A39: 2222 | C39: Vypořádání předch.let | D39: 0 | E39: 35.9 | F39: 0 | G39: 0
A40: 2229 | C40: Ostatní přijaté vratky transferů | D40: 176.04 | E40: 227.88 | F40: 144.04 | G40: -32
A41: 2310 | C41: Příjmy z prodeje krátkodobého | D41: 0 | E41: 118.51 | F41: 100 | G41: 100
A42: 2321 | C42: Přijaté neinvestiční dary | D42: 0 | E42: 569.15 | F42: 0 | G42: 0
A43: 2322 | C43: Přijaté pojistné náhrady | D43: 0 | E43: 1675.94 | F43: 0 | G43: 0
A44: 2324 | C44: Přijaté nekapitálové příspěvky a náhrady | D44: 1540 | E44: 3164.89 | F44: 3070 | G44: 1530
A45: 2328 | C45: Neidentifikované příjmy | D45: 0 | E45: 58.06 | F45: 53.52 | G45: 53.52
A46: 2329 | C46: Ostatní nedaňové příjmy jinde nezařazené | D46: 0 | E46: 0.01 | F46: 0 | G46: 0
A47: 2460 | C47: Splátky půjčených prostředků od obyvatelstva | D47: 0 | E47: 223.58 | F47: 200 | G47: 200
C48: Nedaňové příjmy celkem | D48: 29833.04 | E48: 46534.1 | F48: 43755.56 | G48: 13922.52
A50: Třída 3 | C50: Kapitálové příjmy
A51: 3111 | C51: Příjmy z prodeje pozemků | D51: 50 | E51: 2572.89 | F51: 251.64 | G51: 201.64
A52: 3112 | C52: Příjmy - prodej ost.nemovit. | D52: 1 | E52: 1705 | F52: 500 | G52: 499
A53: 3122 | C53: Přijaté příspěvky na pořízení dlouhodobého majetku | D53: 168342 | E53: 0 | F53: 12344.03 | G53: -155997.97
C54: Kapitálové příjmy celkem | D54: 168393 | E54: 4277.89 | F54: 13095.67 | G54: -155297.33
A57: Třída 4 | C57: Dotace
A58: 4111 | C58: Transfery - z pokladní správy | D58: 432 | E58: 954.7 | F58: 300 | G58: -132
A59: --> | B59: 98008 | C59: Volby prezidenta ČR | D59: 432 | E59: 354.7 | F59: 0 | G59: -432
B60: 98187 | C60: Volby Parlament ČR a obce | D60: 0 | E60: 600 | F60: 0 | G60: 0
B61: 98348 | C61: Příprava a konání voleb do Evropského Parlamentu | D61: 0 | E61: 0 | F61: 300 | G61: 300
A62: 4112 | C62: Transfery - souhrnný vztah | D62: 23633.8 | E62: 23633.8 | F62: 26824.5 | G62: 3190.7
A63: 4113 | C63: Neinvestiční přijaté transfery ze státních fondů | D63: 0 | E63: 0 | F63: 1000 | G63: 1000
A64: 4116 | C64: Transfery - ze stát. rozpočtu | D64: 8505 | E64: 11836.03 | F64: 16658.11 | G64: 8153.11
A65: --> | B65: 13010 | C65: Státní příspěvek na výkon pěstounské péče | D65: 672 | E65: 608 | F65: 448 | G65: -224
B66: 13011 | C66: dotace na výkon SPOD | D66: 4380 | E66: 4014.18 | F66: 4951 | G66: 571
B67: 13013 | C67: Operační program zaměstnanost | D67: 1675 | E67: 1742.56 | F67: 2200.45 | G67: 525.45
B68: 13015 | C68: příspěvek na výkon soc.práce | D68: 996 | E68: 1214.99 | F68: 1215 | G68: 219
B69: 13101 | C69: Politika zaměstnanosti | D69: 0 | E69: 1.42 | F69: 0 | G69: 0
B70: 14004 | C70: Dotace hasičům JPO III. | D70: 0 | E70: 2.49 | F70: 0 | G70: 0
B71: 33063 | C71: OP VVV - PO3 neinvestice | D71: 782 | E71: 4252.38 | F71: 1465.56 | G71: 683.56
A72: 4121 | C72: Neinvestiční přijaté transfery od obcí | D72: 208 | E72: 139.84 | F72: 208 | G72: 0
A73: 4122 | C73: Neinvestiční přijaté transfery od krajů | D73: 0 | E73: 21904.73 | F73: 0 | G73: 0
A74: --> | B74: 00100 | C74: Neinv. dotace od KÚ (Senior) | D74: 0 | E74: 187 | F74: 0 | G74: 0
B75: 00120 | C75: Provoz dět.dopr.hřiště | D75: 0 | E75: 135.86 | F75: 0 | G75: 0
B76: 13014 | C76: Operační program potravinové a materiální pomoci | D76: 0 | E76: 189.87 | F76: 0 | G76: 0
B77: 13305 | C77: Nedávkové transfery | D77: 0 | E77: 21392 | F77: 0 | G77: 0
A78: 4213 | C78: Investiční přijaté transfery ze státních fondů | D78: 0 | E78: 0 | F78: 117878 | G78: 117878
A79: 4216 | C79: Transfery - ze SR | D79: 0 | E79: 13499.89 | F79: 26585.7 | G79: 26585.7
A80: --> | B80: 15974 | C80: Proj.mimo EU, 215 212-EU-IV | D80: 0 | E80: 12949.89 | F80: 0 | G80: 0
B81: 17968 | C81: IROP - 117030 - SR - IV | D81: 0 | E81: 30.56 | F81: 0 | G81: 0
B82: 17969 | C82: IROP -117030 - EU - IV | D82: 0 | E82: 519.44 | F82: 0 | G82: 0
A83: 4222 | C83: Investiční přijaté transfery od krajů | D83: 0 | E83: 7500 | F83: 0 | G83: 0
A84: --> | B84: 00150 | C84: dotace od ZK | D84: 0 | E84: 7500 | F84: 0 | G84: 0
C85: Dotace dle UZ celkem | D85: 32778.8 | E85: 79468.98 | F85: 189454.31 | G85: 156675.51
C87: Příjmy celkem | D87: 519244.84 | E87: 428609.3 | F87: 563346.54 | G87: 44101.7
A89: >>>> Konec sestavy <<<<
A91: Návrh pro rok 2019 č.1 Čerpání k období 12/2018
A92: Zpracoval :Dokoupil Jaroslav, Ing. ..................... Razítko

Sheet Výdaje dle odvětví
A1: město Otrokovice | B1: NÁVRH ROZPOČTU NA ROK 2019
A2: IČO:00284301 | B2: VÝDAJE - ODVĚTVOVÉ TŘÍDĚNÍ v tisících Kč
C3: Schvál.rozp. | D3: Předběžná skut. | E3: Návrh rozp. | F3: %
A4: OD | B4: TEXT | C4: za rok 2018 | D4: za rok 2018 | E4: na rok 2019 | F4: z NR 2019
B6: Výdaje dle odvětví
A7: 10 | B7: Zemědělství a lesní hospodářství | C7: 1105 | D7: 557.53 | E7: 1145 | F7: =E7/VC -> 0.002032496729
A8: 21 | B8: Průmysl, stavebnictví, obchod a služby | C8: 3525 | D8: 2402.86 | E8: 3371 | F8: 0.005983883384
A9: 22 | B9: Doprava | C9: 156163 | D9: 52013.09 | E9: 204347 | F9: 0.3627376499
A10: 23 | B10: Vodní hospodářství | C10: 361 | D10: 326.72 | E10: 686 | F10: 0.001217722931
A11: 31 | B11: Vzdělávání | C11: 55407 | D11: 54677.44 | E11: 65889.27 | F11: 0.1169604592
A12: 32 | B12: Vzdělávání | C12: 0 | D12: 31 | E12: 0 | F12: 0
A13: 33 | B13: Kultura, církve a sdělovací prostředky | C13: 17736.36 | D13: 16821 | E13: 19830.48 | F13: 0.03520121025
A14: 34 | B14: Sport a zájmová činnost | C14: 72445 | D14: 79182.13 | E14: 32488 | F14: 0.05766965392
A15: 35 | B15: Zdravotnictví | C15: 3217 | D15: 326.02 | E15: 219 | F15: 0.0003887482827
A16: 36 | B16: Bydlení, komunální služby a územní rozvoj | C16: 34610 | D16: 20074.07 | E16: 24332.6 | F16: 0.04319295189
A17: 37 | B17: Ochrana životního prostředí | C17: 30243 | D17: 28657.68 | E17: 30965.5 | F17: 0.05496705456
A18: 42 | B18: Politika zaměstnanosti | C18: 797 | D18: 1008.92 | E18: 0 | F18: 0
A19: 43 | B19: Sociální péče | C19: 38410.17 | D19: 55418.23 | E19: 36318 | F19: 0.0644683111
A20: 52 | B20: Civilní připravenost na krizové stavy | C20: 883 | D20: 17.07 | E20: 888 | F20: 0.001576294407
A21: 53 | B21: Bezpečnost a veřejný pořádek | C21: 16910 | D21: 15602.97 | E21: 26498 | F21: 0.0470367671
A22: 55 | B22: Požární ochrana a integrovaný záchranný systém | C22: 2144 | D22: 1243.96 | E22: 3458 | F22: 0.006138317633
A23: 61 | B23: Státní moc, státní správa | C23: 122700.05 | D23: 115490.63 | E23: 111644.69 | F23: 0.1981811941
A24: 62 | B24: Jiné veřejné služby a činnosti | C24: 50 | D24: 70 | E24: 50 | F24: 8.875531569e-05
A25: 63 | B25: Finanční operace | C25: 1014 | D25: 4526.09 | E25: 1170 | F25: 0.002076874387
A26: 64 | B26: Ostatní činnosti | C26: 1 | D26: 69.66 | E26: 46 | F26: 8.165489043e-05
B27: Výdaje dle odvětví celkem | C27: 557721.58 | D27: 448517.07 | E27: 563346.54 | F27: =SUM(F7:F26) -> 1
B29: Běžné výdaje dle odvětví
A30: 10 | B30: Zemědělství a lesní hospodářství | C30: 1105 | D30: 557.53 | E30: 1145 | F30: =E30/BVC -> 0.003334786271
A31: 21 | B31: Průmysl, stavebnictví, obchod a služby | C31: 3525 | D31: 2402.86 | E31: 3371 | F31: 0.009817960279
A32: 22 | B32: Doprava | C32: 36163 | D32: 42970.59 | E32: 48269 | F32: 0.1405823568
A33: 23 | B33: Vodní hospodářství | C33: 361 | D33: 326.72 | E33: 386 | F33: 0.001124216158
A34: 31 | B34: Vzdělávání | C34: 32727 | D34: 35709.89 | E34: 43321.07 | F34: 0.126171624
A35: 32 | B35: Vzdělávání | C35: 0 | D35: 31 | E35: 0 | F35: 0
A36: 33 | B36: Kultura, církve a sdělovací prostředky | C36: 17736.36 | D36: 16821 | E36: 18830.48 | F36: 0.05484334164
A37: 34 | B37: Sport a zájmová činnost | C37: 25545 | D37: 26985.35 | E37: 28288 | F37: 0.082388152
A38: 35 | B38: Zdravotnictví | C38: 3217 | D38: 326.02 | E38: 219 | F38: 0.0006378324833
A39: 36 | B39: Bydlení, komunální služby a územní rozvoj | C39: 14760 | D39: 11484.79 | E39: 15762.6 | F39: 0.04590821142
A40: 37 | B40: Ochrana životního prostředí | C40: 24732 | D40: 25864.02 | E40: 26145.5 | F40: 0.07614816983
A41: 42 | B41: Politika zaměstnanosti | C41: 797 | D41: 1008.92 | E41: 0 | F41: 0
A42: 43 | B42: Sociální péče | C42: 34910.17 | D42: 50726.66 | E42: 33368 | F42: 0.09718353563
A43: 52 | B43: Civilní připravenost na krizové stavy | C43: 883 | D43: 17.07 | E43: 888 | F43: 0.002586279658
A44: 53 | B44: Bezpečnost a veřejný pořádek | C44: 13310 | D44: 13702.34 | E44: 14178 | F44: 0.04129310022
A45: 55 | B45: Požární ochrana a integrovaný záchranný systém | C45: 2104 | D45: 1183.97 | E45: 2158 | F45: 0.006285125566
A46: 61 | B46: Státní moc, státní správa | C46: 102870.05 | D46: 98684.37 | E46: 105754.69 | F46: 0.3080081121
A47: 62 | B47: Jiné veřejné služby a činnosti | C47: 50 | D47: 70 | E47: 50 | F47: 0.0001456238546
A48: 63 | B48: Finanční operace | C48: 1014 | D48: 4526.09 | E48: 1170 | F48: 0.003407598198
A49: 64 | B49: Ostatní činnosti | C49: 1 | D49: 69.66 | E49: 46 | F49: 0.0001339739463
B50: Běžné výdaje celkem | C50: 315810.58 | D50: 333468.85 | E50: 343350.34 | F50: =SUM(F30:F49) -> 1
B52: Kapitálové výdaje dle odvětví
A53: 22 | B53: Doprava | C53: 120000 | D53: 9042.51 | E53: 156078 | F53: =E53/KVC -> 0.7094577088
A54: 23 | B54: Vodní hospodářství | C54: 0 | D54: 0 | E54: 300 | F54: 0.001363659918
A55: 31 | B55: Vzdělávání | C55: 22680 | D55: 18967.55 | E55: 22568.2 | F55: 0.1025844992
A56: 33 | B56: Kultura, církve a sdělovací prostředky | C56: 0 | D56: 0 | E56: 1000 | F56: 0.004545533059
A57: 34 | B57: Sport a zájmová činnost | C57: 46900 | D57: 52196.78 | E57: 4200 | F57: 0.01909123885
A58: 36 | B58: Bydlení, komunální služby a územní rozvoj | C58: 19850 | D58: 8589.28 | E58: 8570 | F58: 0.03895521832
A59: 37 | B59: Ochrana životního prostředí | C59: 5511 | D59: 2793.66 | E59: 4820 | F59: 0.02190946935
A60: 43 | B60: Sociální péče | C60: 3500 | D60: 4691.57 | E60: 2950 | F60: 0.01340932252
A61: 53 | B61: Bezpečnost a veřejný pořádek | C61: 3600 | D61: 1900.63 | E61: 12320 | F61: 0.05600096729
A62: 55 | B62: Požární ochrana a integrovaný záchranný systém | C62: 40 | D62: 59.99 | E62: 1300 | F62: 0.005909192977
A63: 61 | B63: Státní moc, státní správa | C63: 19830 | D63: 16806.26 | E63: 5890 | F63: 0.02677318972
B64: Kapitálové výdaje celkem | C64: 241911 | D64: 115048.23 | E64: 219996.2 | F64: =SUM(F53:F63) -> 1
A65: >>>> Konec sestavy <<<<
A67: Návrh pro rok 2019 č.1 Čerpání k období 12/2018
A68: Zpracoval :Dokoupil Jaroslav, Ing. ..................... Razítko

Sheet Kapitálové výdaje
A1: město Otrokovice | B1: NÁVRH ROZPOČTU NA ROK 2019
A2: IČO:00284301 | B2: VÝDAJE - FUNKČNÍ TŘÍDĚNÍ dle ORG v tisících Kč
C3: Schvál. rozp. | D3: Předběžná skut. | E3: Návrh rozp. | F3: %
A4: ORG | B4: TEXT | C4: za r. 2018 | D4: za r. 2018 | E4: na r. 2019 | F4: z NR 2019
B6: Kapitálové výdaje dle ORG
A7: ---- | B7: Nezadaná hodnota ORG | C7: 4630 | D7: 2961.25 | E7: 4240 | F7: =E7/NRKV2019 -> 0.01927306017
A8: 0128 | B8: Projekty nejbližších let - ORM | C8: 1900 | D8: 246.72 | E8: 1200 | F8: 0.005454639671
A9: 0324 | B9: Technické služby | C9: 450 | D9: 0 | E9: 750 | F9: 0.003409149794
A10: 0326 | B10: Hasiči Otrokovice | C10: 40 | D10: 44.99 | E10: 50 | F10: 0.000227276653
A11: 0327 | B11: Hasiči Kvítkovice | C11: 0 | D11: 0 | E11: 1250 | F11: 0.005681916324
A12: 0603 | B12: Otrokovická Beseda | C12: 0 | D12: 0 | E12: 500 | F12: 0.00227276653
A13: 0656 | B13: Městská policie | C13: 3300 | D13: 1809.55 | E13: 2720 | F13: 0.01236384992
A14: 2151 | B14: Laziště základní technická vybavenost | C14: 450 | D14: 180.05 | E14: 250 | F14: 0.001136383265
A15: 6202 | B15: Revitalizace městské sportovní haly | C15: 39000 | D15: 45093.65 | E15: 600 | F15: 0.002727319836
A16: 6213 | B16: Dobudování protipovodňových opatření Baťov (TSO) | C16: 520 | D16: 42.3 | E16: 520 | F16: 0.002363677191
A17: 6215 | B17: Zvýšení kapacity parkoviště u Polikliniky | C17: 400 | D17: 520.3 | E17: 950 | F17: 0.004318256406
A18: 6217 | B18: Revitalizace centrálních ploch sídliště Trávníky | C18: 3900 | D18: 2083.15 | E18: 4300 | F18: 0.01954579215
A19: 6284 | B19: Hlavní č.1229 (ND) zateplení | C19: 3500 | D19: 2254.99 | E19: 100 | F19: 0.0004545533059
A20: 6296 | B20: Nová parkovací místa Štěrkoviště | C20: 1200 | D20: 7.97 | E20: 1400 | F20: 0.006363746283
A21: 7123 | B21: Prodloužení ulice Na Uličce - jih | C21: 2000 | D21: 1550.78 | E21: 400 | F21: 0.001818213224
A22: 7203 | B22: Most M-1 přes žel. trať a místní kominikaci | C22: 82800 | D22: 2023.9 | E22: 125878 | F22: 0.5721826104
A23: 7208 | B23: ZŠ Trávníky moder.učeben+bezbariérovost | C23: 300 | D23: 0 | E23: 5500 | F23: 0.02500043183
A24: 7209 | B24: Bezbariérové úpravy a vybavení zastávek MHD | C24: 17000 | D24: 459.64 | E24: 12000 | F24: 0.05454639671
A25: 7212 | B25: Rekonstrukce ulice Na Uličce | C25: 4200 | D25: 42.35 | E25: 200 | F25: 0.0009091066118
A26: 7250 | B26: Rozšíření kolumbaria na městském hřbitově | C26: 2200 | D26: 1038.33 | E26: 1300 | F26: 0.005909192977
A27: 7253 | B27: Zlepšení tepelně tech.vlastností ul. Hlavní 1161 | C27: 9000 | D27: 10.29 | E27: 1500 | F27: 0.006818299589
A28: 7258 | B28: Návrh vedení cyklistů v ul. SNP | C28: 400 | D28: 0 | E28: 50 | F28: 0.000227276653
A29: 7266 | B29: Digitální povodňový plán města a ORP | C29: 791 | D29: 668.21 | E29: 50 | F29: 0.000227276653
A30: 8214 | B30: ZŠ TGM rozšíření kapacity +3 učebny | C30: 4700 | D30: 6259.52 | E30: 7200 | F30: 0.03272783803
A31: 8216 | B31: Modernizace učeben ZŠ města Otrokovice - ZŠ TGM | C31: 2000 | D31: 54.45 | E31: 815 | F31: 0.003704609443
A32: 8230 | B32: Rozšíření ul. Čechova | C32: 500 | D32: 72.6 | E32: 300 | F32: 0.001363659918
A33: 8240 | B33: Revitalizace víceúčelového a DěHř. Padělky | C33: 1500 | D33: 210.54 | E33: 2800 | F33: 0.01272749257
A34: 8241 | B34: Přechody pro chodce tř.T.B. | C34: 1500 | D34: 26.62 | E34: 1400 | F34: 0.006363746283
A35: 8242 | B35: OB-klimatizace kinosálu | C35: 0 | D35: 0 | E35: 200 | F35: 0.0009091066118
A36: 8245 | B36: Hurdis. domy T.B. - venkovní inž. sítě | C36: 350 | D36: 76 | E36: 2300 | F36: 0.01045472604
A37: 8250 | B37: Městské koupaliště-nový venkovní bufet | C37: 950 | D37: 411.4 | E37: 300 | F37: 0.001363659918
A38: 8251 | B38: Hálkova ulice rozšíření | C38: 0 | D38: 0 | E38: 300 | F38: 0.001363659918
A39: 8254 | B39: Program dotací na soukromá parkovací místa | C39: 0 | D39: 140 | E39: 250 | F39: =E39/NRKV2019 -> 0.001136383265
A40: 8256 | B40: Páteřní cyklostezka, napojení sídliště Střed | C40: 0 | D40: 90.75 | E40: 6000 | F40: 0.02727319836
A41: 8259 | B41: Dět.dopr.hřiště- budova, signalizace, povrch | C41: 0 | D41: 163.35 | E41: 200 | F41: 0.0009091066118
A42: 8263 | B42: Přír. vzd. bez hranic na ot ZŠ | C42: 0 | D42: 0 | E42: 361 | F42: 0.001640937434
A43: 8264 | B43: Zvýšení kvality vzd.v klíč.kom | C43: 0 | D43: 0 | E43: 2005.2 | F43: 0.00911470289
A44: 8265 | B44: Revit.prostor školy ZŠ Trav | C44: 0 | D44: 0 | E44: 6237 | F44: 0.02835048969
A45: 8615 | B45: OMP-výkupy pozemků | C45: 1000 | D45: 118.16 | E45: 1080 | F45: 0.004909175704
A46: 9301 | B46: Úprava světelné signal. na ul. Komenského | C46: 0 | D46: 0 | E46: 200 | F46: 0.0009091066118
A47: 9302 | B47: Autobusové nádraží Baťov | C47: 0 | D47: 0 | E47: 300 | F47: 0.001363659918
A48: 9303 | B48: OB přístavba nákladního výtahu | C48: 0 | D48: 0 | E48: 200 | F48: 0.0009091066118
A49: 9306 | B49: Rozřš. hřbitova - zvýšení kapacity | C49: 0 | D49: 60 | E49: 1100 | F49: 0.005000086365
A50: 9307 | B50: Pietní síň měst. hřbitova - modernizace | C50: 0 | D50: 0 | E50: 90 | F50: 0.0004090979753
A51: 9308 | B51: Páteř. cyklostezka O.-V. napojení Baťov | C51: 0 | D51: 0 | E51: 900 | F51: 0.004090979753
A52: 9309 | B52: Návrh cyklist.trasy na sil. i/55 | C52: 0 | D52: 0 | E52: 400 | F52: 0.001818213224
A53: 9310 | B53: Moder. učeben DDM Sluníčko | C53: 0 | D53: 0 | E53: 250 | F53: 0.001136383265
A54: 9311 | B54: Nám. 3. května 1342 + garáž K3 | C54: 0 | D54: 0 | E54: 250 | F54: 0.001136383265
A55: 9312 | B55: ZŠ Mánesova - výměna dělící stěny | C55: 0 | D55: 0 | E55: 450 | F55: 0.002045489877
A56: 9313 | B56: Odst. závady na lávce přes Dře | C56: 0 | D56: 0 | E56: 250 | F56: 0.001136383265
A57: 9315 | B57: Zlepšení energetických vlastností SENIORu B | C57: 0 | D57: 0 | E57: 250 | F57: 0.001136383265
A58: 9317 | B58: Úprava parkování na ul. Spojenců | C58: 0 | D58: 0 | E58: 150 | F58: 0.0006818299589
A59: 9318 | B59: Navýšení kap. parkování na ul. Tylova | C59: 0 | D59: 0 | E59: 1800 | F59: 0.008181959507
A60: 9319 | B60: Využití prostor rad. rest. pro MP | C60: 0 | D60: 0 | E60: 9600 | F60: 0.04363711737
A61: 9320 | B61: Odkanalizování vodoteče Hrabůvka | C61: 0 | D61: 0 | E61: 250 | F61: 0.001136383265
A62: 9321 | B62: Ul. kpt. Jaroše rozšíření míst. komunikace | C62: 0 | D62: 0 | E62: 550 | F62: 0.002500043183
A63: 9325 | B63: Rekonstr. dět. hř. na ul. Přístavní | C63: 0 | D63: 0 | E63: 100 | F63: 0.0004545533059
A64: 9327 | B64: Revitalizace welness zařízení v SAB Baťov | C64: 0 | D64: 163.96 | E64: 50 | F64: 0.000227276653
A65: 9328 | B65: Úprava prostr. před ZŠ TGM | C65: 0 | D65: 0 | E65: 850 | F65: 0.0038637031
A66: 9329 | B66: Využití prostor býv. MP na pracoviště MěÚ | C66: 0 | D66: 0 | E66: 200 | F66: 0.0009091066118
A67: 9330 | B67: Sesterny a pečovatelny SENIOR B | C67: 0 | D67: 0 | E67: 1100 | F67: 0.005000086365
A68: 9331 | B68: Sklad materiálu SENIOR B | C68: 0 | D68: 0 | E68: 600 | F68: 0.002727319836
A69: 9332 | B69: Tělocvična a spol. míst. 3.p. SENIOR B | C69: 0 | D69: 0 | E69: 650 | F69: 0.002954596488
A70: 9333 | B70: Odstranění závady v SENIOR B | C70: 0 | D70: 0 | E70: 250 | F70: 0.001136383265
A71: 9334 | B71: Revitalizace ROŠ | C71: 0 | D71: 0 | E71: 100 | F71: =E71/NRKV2019 -> 0.0004545533059
A72: 9335 | B72: Kruh.objezd Komenského Nadjezd | C72: 0 | D72: 0 | E72: 150 | F72: =E72/NRKV2019 -> 0.0006818299589
A73: 9347 | B73: Přestavba kanceláří budova 1 MěÚ | C73: 0 | D73: 0 | E73: 1500 | F73: =E73/NRKV2019 -> 0.006818299589
B74: Kapitálové výdaje celkem | E74: =SUBTOTAL(9,E7:E73) -> 219996.2 | F74: =SUM(F7:F73) -> 1
A75: >>>> Konec sestavy <<<<
A77: Návrh pro rok 2019 č.1 Čerpání k období 12/2018
A78: Podmínka :Položka rozpočtu:6000:6999
A79: Zpracoval :Dokoupil Jaroslav, Ing. ..................... Razítko

Sheet Příspěvkové organizace
A1: město Otrokovice | B1: NÁVRH ROZPOČTU NA ROK 2019
A2: IČO:00284301 | B2: Příspěvkové organizace (v tis. Kč)
C3: Schvál. rozp. | D3: Skuteč. | E3: Návrh rozp. | F3: Rozdíl
A4: POL | B4: TEXT | C4: za rok 2018 | D4: za r. 2018 | E4: na rok 2019 | F4: k SR minR
B6: ORG 0351 - Mateřská škola Otrokovice PO
B7: Příspěvky zřízeným PO | C7: 8971 | D7: 9012.58 | E7: 9069 | F7: 98
B8: ORG 0357 - Zákl.škola T. G. Masaryka Otrokovice PO
A9: 5331 | B9: Příspěvky zřízeným PO | C9: 6646 | D9: 6646.08 | E9: 7113 | F9: 467
B10: ORG 0358 - Zákl.škola Mánesova Otrokovice PO
A11: 5331 | B11: Příspěvky zřízeným PO | C11: 7172 | D11: 7186.46 | E11: 7736 | F11: 564
B12: ORG 0359 - Zákl.škola Trávníky Otrokovice PO
A13: 5331 | B13: Příspěvky zřízeným PO | C13: 7166 | D13: 7293.24 | E13: 7775 | F13: 609
B14: ORG 0612 - DDM Sluníčko, přísp. org.
A15: 5331 | B15: Příspěvky zřízeným PO | C15: 2564 | D15: 2892.42 | E15: 3373 | F15: 809
B16: ORG 0450 - 0483 SENIOR Otrokovice
A17: 5331 | B17: Příspěvky zřízeným PO | C17: 15114 | D17: 12450 | E17: 13299 | F17: -1815
B19: Výdaje celkem | C19: =SUM(C7:C17) -> 47633 | D19: =SUM(D7:D17) -> 45480.78 | E19: =SUM(E7:E17) -> 48365 | F19: =SUM(F7:F17) -> 732
A20: >>>> Konec sestavy <<<<
A22: Návrh pro rok 2019 č.1 Čerpání k období 12/2018
A23: Zpracoval :Štětkářová Kateřina DiS. ..................... Razítko
